fUSD/lending_fUSD_20260613
["ID","MTS","AMOUNT","RATE_DAILY","PERIOD"]
[424970564,1781362241000,-597.0,0.00024,2]
[424970565,1781362241000,-168.0,0.00024,2]
[424970561,1781362241000,-152.73497263,0.0002363,2]
[424970567,1781362241000,-327.0,0.00024,2]
[424970566,1781362241000,-271.0,0.00024,2]
[424970569,1781362241000,-430.0,0.00024,2]
[424970570,1781362241000,-892.0,0.00024,7]
[424970568,1781362241000,-258.0,0.00024,2]
[424970572,1781362241000,-344.0,0.00024,2]
[424970573,1781362241000,-213.0,0.00024,2]
[424970571,1781362241000,-1905.0,0.00024,2]
[424970574,1781362241000,-289.0,0.00024,2]
[424970575,1781362241000,-1194.0,0.00024,2]
[424970576,1781362241000,-150.0,0.00024092,2]
[424970577,1781362241000,-150.0,0.00024164,2]
[424970578,1781362241000,-500.0,0.00024191,2]
[424970580,1781362241000,-152.73497263,0.00024315,2]
[424970579,1781362241000,-501.0,0.000242,7]
[424970581,1781362241000,-951.9,0.00024324,2]
[424970582,1781362241000,-500.0,0.00024384,2]
[424970521,1781362241000,-842.51,0.00022691,2]
[424970555,1781362241000,-150.0,0.000235,2]
[424970557,1781362241000,-150.0,0.000235,2]
[424970563,1781362241000,-173.591583,0.00024,2]
[424970552,1781362241000,-1228.0,0.000235,2]
[424970525,1781362241000,-2884.75459676,0.00022916,2]
[424970524,1781362241000,-506.43092961,0.00022875,7]
[424970526,1781362241000,-194.37248128,0.00022931,2]
[424970528,1781362241000,-152.73497263,0.00022945,2]
[424970553,1781362241000,-150.0,0.000235,2]
[424970529,1781362241000,-150.0,0.00022945,2]
[424970531,1781362241000,-168.0,0.00023,2]
[424970530,1781362241000,-597.0,0.00023,2]
[424970583,1781362241000,-500.0,0.00024384,2]
[424970533,1781362241000,-327.0,0.00023,2]
[424970535,1781362241000,-430.0,0.00023,2]
[424970538,1781362241000,-213.0,0.00023,2]
[424970534,1781362241000,-258.0,0.00023,2]
[424970536,1781362241000,-1905.0,0.00023,2]
[424970527,1781362241000,-225.78213351,0.00022931,2]
[424970537,1781362241000,-344.0,0.00023,2]
[424970539,1781362241000,-289.0,0.00023,2]
[424970551,1781362241000,-1275.0,0.000235,2]
[424970549,1781362241000,-1359.0,0.000235,2]
[424970550,1781362241000,-383.0,0.000235,2]
[424970548,1781362241000,-3557.0,0.000235,2]
[424970545,1781362241000,-981.0,0.00023331,2]
[424970547,1781362241000,-2991.49051684,0.00023464,2]
[424970540,1781362241000,-1194.0,0.00023,2]
[424970544,1781362241000,-4655.18,0.00023317,7]
[424970542,1781362241000,-6384.30710499,0.00023102,2]
[424970543,1781362241000,-160.23828954,0.00023287,2]
[424970541,1781362241000,-150.0,0.00023014,2]
[424970546,1781362241000,-757.59038305,0.00023375,7]
[424970603,1781362242000,-500.0,0.00024384,2]
[424970594,1781362242000,-500.0,0.00024384,2]
[424970601,1781362242000,-500.0,0.00024384,2]
[424970598,1781362242000,-324.00886053,0.00024384,2]
[424970600,1781362242000,-500.0,0.00024384,2]
[424970599,1781362242000,-500.0,0.00024384,2]
[424970597,1781362242000,-500.0,0.00024384,2]
[424970595,1781362242000,-500.0,0.00024384,2]
[424970596,1781362242000,-500.0,0.00024384,2]
[424970587,1781362242000,-500.0,0.00024384,2]
[424970593,1781362242000,-500.0,0.00024384,2]
[424970591,1781362242000,-500.0,0.00024384,2]
[424970590,1781362242000,-500.0,0.00024384,2]
[424970589,1781362242000,-500.0,0.00024384,2]
[424970588,1781362242000,-500.0,0.00024384,2]
[424970586,1781362242000,-500.0,0.00024384,2]
[424970584,1781362242000,-500.0,0.00024384,2]
[424970585,1781362242000,-500.0,0.00024384,2]
[424970602,1781362242000,-500.0,0.00024384,2]
[424970592,1781362242000,-500.0,0.00024384,2]
[424970605,1781362242000,-500.0,0.00024384,2]
[424970606,1781362242000,-500.0,0.00024384,2]
[424970607,1781362242000,-500.0,0.00024384,2]
[424970608,1781362242000,-500.0,0.00024384,2]
[424970625,1781362242000,-150.0,0.00024384,2]
[424970627,1781362242000,-2000.0,0.00024485,2]
[424970626,1781362242000,-552.41131598,0.00024485,2]
[424970624,1781362242000,-266.84747052,0.00024384,2]
[424970621,1781362242000,-250.0,0.00024384,2]
[424970622,1781362242000,-639.14495753,0.00024384,2]
[424970620,1781362242000,-250.0,0.00024384,2]
[424970616,1781362242000,-500.0,0.00024384,2]
[424970614,1781362242000,-500.0,0.00024384,2]
[424970623,1781362242000,-250.0,0.00024384,2]
[424970612,1781362242000,-500.0,0.00024384,2]
[424970619,1781362242000,-500.0,0.00024384,2]
[424970617,1781362242000,-500.0,0.00024384,2]
[424970618,1781362242000,-269.40838366,0.00024384,2]
[424970613,1781362242000,-500.0,0.00024384,2]
[424970611,1781362242000,-500.0,0.00024384,2]
[424970609,1781362242000,-500.0,0.00024384,2]
[424970610,1781362242000,-500.0,0.00024384,2]
[424970615,1781362242000,-500.0,0.00024384,2]
[424970604,1781362242000,-500.0,0.00024384,2]
[424970662,1781362243000,-209.40437684,0.00024585,2]
[424970664,1781362243000,-721.12765534,0.00024585,2]
[424970665,1781362243000,-500.0,0.00024585,2]
[424970663,1781362243000,-500.0,0.00024585,2]
[424970660,1781362243000,-500.0,0.00024585,2]
[424970659,1781362243000,-209.40437684,0.00024585,2]
[424970655,1781362243000,-155.65257845,0.00024585,2]
[424970658,1781362243000,-209.40437684,0.00024585,2]
[424970667,1781362243000,-500.0,0.00024585,2]
[424970661,1781362243000,-500.0,0.00024585,2]
[424970666,1781362243000,-151.0,0.00024585,2]
[424970680,1781362243000,-500.0,0.00024585,2]
[424970671,1781362243000,-500.0,0.00024585,2]
[424970673,1781362243000,-500.0,0.00024585,2]
[424970682,1781362243000,-500.0,0.00024585,2]
[424970686,1781362243000,-152.0,0.00024585,2]
[424970688,1781362243000,-152.0,0.00024585,2]
[424970684,1781362243000,-500.0,0.00024585,2]
[424970675,1781362243000,-500.0,0.00024585,2]
[424970677,1781362243000,-152.0,0.00024585,2]
[424970657,1781362243000,-151.0,0.00024585,2]
[424970692,1781362243000,-152.0,0.00024585,2]
[424970694,1781362243000,-152.0,0.00024585,2]
[424970696,1781362243000,-152.0,0.00024585,2]
[424970669,1781362243000,-4853.74383408,0.00024585,2]
[424970656,1781362243000,-153.05655402,0.00024585,2]
[424970646,1781362243000,-578.20924308,0.00024585,2]
[424970651,1781362243000,-237.05488945,0.00024585,2]
[424970698,1781362243000,-152.0,0.00024585,2]
[424970629,1781362243000,-39154.70395339,0.0002451,2]
[424970628,1781362243000,-300.0,0.00024485,7]
[424970630,1781362243000,-1030.0,0.00024585,2]
[424970631,1781362243000,-1068.11,0.00024585,2]
[424970634,1781362243000,-1107.63007,0.00024585,2]
[424970632,1781362243000,-284.01862642,0.00024585,2]
[424970633,1781362243000,-209.40437684,0.00024585,2]
[424970635,1781362243000,-771.63317921,0.00024585,2]
[424970637,1781362243000,-1191.11104074,0.00024585,2]
[424970636,1781362243000,-1148.61238259,0.00024585,2]
[424970639,1781362243000,-1280.88388877,0.00024585,2]
[424970638,1781362243000,-1235.18214925,0.00024585,2]
[424970642,1781362243000,-1377.42282658,0.00024585,2]
[424970641,1781362243000,-1328.27659266,0.00024585,2]
[424970640,1781362243000,-151.0,0.00024585,2]
[424970643,1781362243000,-174.61919141,0.00024585,2]
[424970645,1781362243000,-1481.2378076,0.00024585,2]
[424970644,1781362243000,-1428.38747117,0.00024585,2]
[424970647,1781362243000,-160.43235665,0.00024585,2]
[424970649,1781362243000,-1536.04360648,0.00024585,2]
[424970648,1781362243000,-151.0,0.00024585,2]
[424970650,1781362243000,-160.13511027,0.00024585,2]
[424970652,1781362243000,-9552.16786547,0.00024585,2]
[424970653,1781362243000,-200.0,0.00024585,2]
[424970654,1781362243000,-693.39197629,0.00024585,2]
[424970701,1781362243000,-152.0,0.00024585,2]
[424970744,1781362243000,-151.0,0.00024915,2]
[424970711,1781362243000,-151.0,0.0002464,2]
[424970752,1781362243000,-344.15480245,0.00025,2]
[424970754,1781362243000,-443.0,0.00025,2]
[424970757,1781362243000,-359.36885265,0.00025,2]
[424970753,1781362243000,-274.43540886,0.00025,2]
[424970755,1781362243000,-1911.0,0.00025,2]
[424970759,1781362243000,-152.73497263,0.00025,2]
[424970763,1781362243000,-1208.43888566,0.00025,2]
[424970765,1781362243000,-151.0,0.00025025,2]
[424970764,1781362243000,-771.63317921,0.00025025,2]
[424970766,1781362243000,-247.68252316,0.00025062,7]
[424970768,1781362243000,-771.63317921,0.0002508,2]
[424970761,1781362243000,-231.79278831,0.00025,2]
[424970773,1781362243000,-160.13511027,0.00025133,2]
[424970772,1781362243000,-181.08010149,0.00025133,2]
[424970769,1781362243000,-151.0,0.0002508,2]
[424970770,1781362243000,-284.01862642,0.00025133,2]
[424970774,1781362243000,-5088.34743037,0.00025133,2]
[424970776,1781362243000,-487.97646921,0.00025133,2]
[424970775,1781362243000,-155.65257845,0.00025133,2]
[424970779,1781362243000,-151.0,0.00025133,2]
[424970777,1781362243000,-200.0,0.00025133,2]
[424970780,1781362243000,-217.15233878,0.00025133,2]
[424970778,1781362243000,-153.05655402,0.00025133,2]
[424970703,1781362243000,-152.0,0.00024585,2]
[424970771,1781362243000,-217.15233878,0.00025133,2]
[424970762,1781362243000,-306.29825713,0.00025,2]
[424970767,1781362243000,-186.85282492,0.00025062,7]
[424970750,1781362243000,-171.42217344,0.00025,2]
[424970709,1781362243000,-771.63317921,0.0002464,2]
[424970751,1781362243000,-282.673382,0.00025,2]
[424970705,1781362243000,-152.0,0.00024585,2]
[424970707,1781362243000,-152.0,0.00024585,2]
[424970714,1781362243000,-1992.31162889,0.0002464,2]
[424970716,1781362243000,-653.9,0.00024658,2]
[424970718,1781362243000,-1000.0,0.00024658,2]
[424970731,1781362243000,-771.63317921,0.0002475,2]
[424970734,1781362243000,-151.0,0.0002475,2]
[424970720,1781362243000,-176.36253076,0.00024658,2]
[424970722,1781362243000,-771.63317921,0.00024695,2]
[424970725,1781362243000,-151.0,0.00024695,2]
[424970727,1781362243000,-981.0,0.00024701,2]
[424970736,1781362243000,-771.63317921,0.00024805,2]
[424970729,1781362243000,-265.58,0.00024707,7]
[424970749,1781362243000,-615.2500112,0.00025,2]
[424970748,1781362243000,-4655.18,0.00024975,7]
[424970743,1781362243000,-771.63317921,0.00024915,2]
[424970742,1781362243000,-1100.0,0.000249,9]
[424970746,1781362243000,-771.63317921,0.0002497,2]
[424970747,1781362243000,-151.0,0.0002497,2]
[424970741,1781362243000,-501.0,0.00024889,8]
[424970739,1781362243000,-771.63317921,0.0002486,2]
[424970740,1781362243000,-151.0,0.0002486,2]
[424970738,1781362243000,-151.0,0.00024805,2]
[424970745,1781362243000,-363.17124535,0.00024938,2]
[424970821,1781362244000,-151.0,0.00026229,2]
[424970816,1781362244000,-233.5188934,0.00026229,2]
[424970820,1781362244000,-153.05655402,0.00026229,2]
[424970818,1781362244000,-194.72792766,0.00026229,2]
[424970814,1781362244000,-981.0,0.00026071,2]
[424970817,1781362244000,-284.01862642,0.00026229,2]
[424970815,1781362244000,-150.0,0.00026075,7]
[424970813,1781362244000,-176.36253076,0.00026027,2]
[424970812,1781362244000,-285.0,0.00025975,5]
[424970811,1781362244000,-352.0,0.00025975,5]
[424970822,1781362244000,-233.5188934,0.00026229,2]
[424970819,1781362244000,-160.13511027,0.00026229,2]
[424970823,1781362244000,-233.5188934,0.00026229,2]
[424970834,1781362244000,-1359.0,0.000265,2]
[424970827,1781362244000,-501.0,0.00026267,9]
[424970826,1781362244000,-538.84,0.0002626,7]
[424970830,1781362244000,-39154.70395339,0.00026328,2]
[424970829,1781362244000,-1000.0,0.000263,2]
[424970828,1781362244000,-951.9,0.00026296,2]
[424970832,1781362244000,-552.41131597,0.00026487,2]
[424970825,1781362244000,-568.18,0.0002626,7]
[424970831,1781362244000,-150.0,0.00026432,7]
[424970833,1781362244000,-3557.0,0.000265,2]
[424970835,1781362244000,-383.0,0.000265,2]
[424970836,1781362244000,-1275.0,0.000265,2]
[424970810,1781362244000,-217.15233878,0.00025954,2]
[424970824,1781362244000,-151.0,0.00026229,2]
[424970808,1781362244000,-150.0,0.00025754,2]
[424970784,1781362244000,-151.0,0.00025135,2]
[424970806,1781362244000,-150.0,0.00025718,7]
[424970839,1781362244000,-150.0,0.000265,2]
[424970781,1781362244000,-217.15233878,0.00025133,2]
[424970785,1781362244000,-6384.30710499,0.00025368,2]
[424970783,1781362244000,-771.63317929,0.00025135,2]
[424970782,1781362244000,-151.0,0.00025133,2]
[424970786,1781362244000,-150.0,0.00025373,2]
[424970787,1781362244000,-10989.2070799,0.00025399,2]
[424970788,1781362244000,-500.0,0.00025566,2]
[424970789,1781362244000,-501.0,0.00025578,9]
[424970790,1781362244000,-2278.0,0.0002558,2]
[424970791,1781362244000,-166.07,0.00025644,2]
[424970794,1781362244000,-187.78006524,0.00025681,2]
[424970807,1781362244000,-150.0,0.00025718,7]
[424970793,1781362244000,-284.01862642,0.00025681,2]
[424970797,1781362244000,-201.86567751,0.00025681,2]
[424970795,1781362244000,-160.13511027,0.00025681,2]
[424970796,1781362244000,-155.65257856,0.00025681,2]
[424970798,1781362244000,-153.05655402,0.00025681,2]
[424970800,1781362244000,-225.18697532,0.00025681,2]
[424970799,1781362244000,-151.0,0.00025681,2]
[424970801,1781362244000,-225.18697532,0.00025681,2]
[424970803,1781362244000,-150.0,0.00025718,7]
[424970804,1781362244000,-150.0,0.00025718,7]
[424970802,1781362244000,-151.0,0.00025681,2]
[424970809,1781362244000,-226.0,0.00025813,2]
[424970805,1781362244000,-150.0,0.00025718,7]
[424970792,1781362244000,-225.18697532,0.00025681,2]
[424970838,1781362244000,-6076.0,0.000265,2]
[424970847,1781362244000,-283.68375276,0.0002668,2]
[424970842,1781362244000,-1190.8030448,0.000265,30]
[424970870,1781362244000,-522.67,0.00027048,7]
[424970872,1781362244000,-150.0,0.00027147,7]
[424970873,1781362244000,-151.1501805,0.00027229,2]
[424970874,1781362244000,-250.0,0.0002726,2]
[424970878,1781362244000,-250.0,0.0002726,2]
[424970877,1781362244000,-250.0,0.0002726,2]
[424970875,1781362244000,-250.0,0.0002726,2]
[424970876,1781362244000,-250.0,0.0002726,2]
[424970880,1781362244000,-250.0,0.0002726,2]
[424970879,1781362244000,-250.0,0.0002726,2]
[424970881,1781362244000,-185.17597994,0.00027276,7]
[424970883,1781362244000,-153.77290169,0.00027276,7]
[424970869,1781362244000,-250.0,0.0002697,2]
[424970882,1781362244000,-154.26118859,0.00027276,7]
[424970886,1781362244000,-151.83075045,0.00027276,7]
[424970887,1781362244000,-188.00895305,0.00027276,7]
[424970885,1781362244000,-162.01491052,0.00027276,7]
[424970889,1781362244000,-174.23410272,0.00027276,7]
[424970891,1781362244000,-202.38456154,0.00027276,7]
[424970888,1781362244000,-153.29374548,0.00027276,7]
[424970890,1781362244000,-151.59364648,0.00027276,7]
[424970894,1781362244000,-208.712746,0.00027276,7]
[424970892,1781362244000,-176.81695525,0.00027276,7]
[424970893,1781362244000,-153.37271356,0.00027276,7]
[424970895,1781362244000,-173.82786619,0.00027276,7]
[424970897,1781362244000,-161.03749456,0.00027276,7]
[424970884,1781362244000,-206.4783203,0.00027276,7]
[424970871,1781362244000,-150.0,0.00027124,2]
[424970841,1781362244000,-934.0,0.000265,2]
[424970866,1781362244000,-250.0,0.0002697,2]
[424970840,1781362244000,-150.0,0.000265,2]
[424970837,1781362244000,-1228.0,0.000265,2]
[424970843,1781362244000,-4655.18,0.00026633,7]
[424970844,1781362244000,-150.0,0.00026641,2]
[424970896,1781362244000,-174.17889926,0.00027276,7]
[424970845,1781362244000,-250.0,0.0002668,2]
[424970846,1781362244000,-250.0,0.0002668,2]
[424970868,1781362244000,-250.0,0.0002697,2]
[424970849,1781362244000,-242.15909246,0.00026777,2]
[424970855,1781362244000,-196.05643121,0.00026777,2]
[424970856,1781362244000,-242.15909246,0.00026777,2]
[424970852,1781362244000,-160.13511027,0.00026777,2]
[424970850,1781362244000,-284.01862642,0.00026777,2]
[424970848,1781362244000,-187.96108579,0.00026767,5]
[424970854,1781362244000,-151.0,0.00026777,2]
[424970851,1781362244000,-201.93286098,0.00026777,2]
[424970865,1781362244000,-250.0,0.0002697,2]
[424970863,1781362244000,-250.0,0.0002697,2]
[424970861,1781362244000,-501.0,0.00026956,10]
[424970862,1781362244000,-250.0,0.0002697,2]
[424970867,1781362244000,-250.0,0.0002697,2]
[424970860,1781362244000,-356.68175869,0.00026887,2]
[424970858,1781362244000,-150.0,0.00026789,7]
[424970859,1781362244000,-1051.80794165,0.00026887,2]
[424970857,1781362244000,-151.0,0.00026777,2]
[424970853,1781362244000,-153.05655402,0.00026777,2]
[424970864,1781362244000,-250.0,0.0002697,2]
[424970938,1781362245000,-150.0,0.00027397,2]
[424970935,1781362245000,-150.0,0.00027397,2]
[424970934,1781362245000,-150.0,0.00027397,2]
[424970932,1781362245000,-150.0,0.00027397,2]
[424970937,1781362245000,-150.0,0.00027397,2]
[424970928,1781362245000,-150.0,0.00027397,2]
[424970930,1781362245000,-150.0,0.00027397,2]
[424970939,1781362245000,-150.0,0.00027397,2]
[424970931,1781362245000,-150.0,0.00027397,2]
[424970929,1781362245000,-150.0,0.00027397,2]
[424970933,1781362245000,-150.0,0.00027397,2]
[424970936,1781362245000,-150.0,0.00027397,2]
[424970952,1781362245000,-179.88861013,0.00027397,7]
[424970941,1781362245000,-150.0,0.00027397,2]
[424970942,1781362245000,-150.0,0.00027397,2]
[424970943,1781362245000,-1500.0,0.00027397,2]
[424970948,1781362245000,-1000.0,0.00027397,20]
[424970946,1781362245000,-1472.44,0.00027397,2]
[424970947,1781362245000,-300.0,0.00027397,2]
[424970945,1781362245000,-1023.9,0.00027397,2]
[424970944,1781362245000,-653.9,0.00027397,2]
[424970951,1781362245000,-1000.0,0.00027397,30]
[424970949,1781362245000,-13400.33,0.00027397,10]
[424970950,1781362245000,-1000.0,0.00027397,30]
[424970953,1781362245000,-171.87092843,0.00027397,7]
[424970927,1781362245000,-150.0,0.00027397,2]
[424970940,1781362245000,-150.0,0.00027397,2]
[424970926,1781362245000,-150.0,0.00027397,2]
[424970913,1781362245000,-153.05655402,0.00027325,2]
[424970924,1781362245000,-150.0,0.00027397,2]
[424970955,1781362245000,-190.24545157,0.00027397,30]
[424970898,1781362245000,-184.39789004,0.00027298,7]
[424970900,1781362245000,-171.09641639,0.00027298,7]
[424970899,1781362245000,-199.40733071,0.00027298,7]
[424970901,1781362245000,-202.98934387,0.00027298,7]
[424970902,1781362245000,-197.77886054,0.00027298,7]
[424970903,1781362245000,-151.17947921,0.00027298,7]
[424970905,1781362245000,-225.18697532,0.00027323,2]
[424970904,1781362245000,-189.51262308,0.00027298,7]
[424970907,1781362245000,-599.60298507,0.00027324,2]
[424970906,1781362245000,-151.0,0.00027324,2]
[424970908,1781362245000,-747.80937859,0.00027324,2]
[424970925,1781362245000,-150.0,0.00027397,2]
[424970909,1781362245000,-251.11897888,0.00027325,2]
[424970914,1781362245000,-151.0,0.00027325,2]
[424970911,1781362245000,-209.40437684,0.00027325,2]
[424970912,1781362245000,-160.13511033,0.00027325,2]
[424970915,1781362245000,-251.11897888,0.00027325,2]
[424970916,1781362245000,-151.0,0.00027325,2]
[424970917,1781362245000,-166.70745033,0.00027382,7]
[424970919,1781362245000,-511.106,0.00027397,2]
[424970918,1781362245000,-176.36253076,0.00027396,2]
[424970920,1781362245000,-150.0,0.00027397,2]
[424970922,1781362245000,-150.0,0.00027397,2]
[424970921,1781362245000,-150.0,0.00027397,2]
[424970923,1781362245000,-150.0,0.00027397,2]
[424970910,1781362245000,-284.01862642,0.00027325,2]
[424970960,1781362245000,-182.45851482,0.00027398,7]
[424970957,1781362245000,-764.65964989,0.00027397,2]
[424971008,1781362245000,-467.34,0.0002755,2]
[424970997,1781362245000,-250.0,0.0002755,2]
[424970996,1781362245000,-250.0,0.0002755,2]
[424971002,1781362245000,-682.19,0.0002755,30]
[424970998,1781362245000,-250.0,0.0002755,2]
[424971001,1781362245000,-467.84,0.0002755,2]
[424971003,1781362245000,-6342.07,0.0002755,30]
[424970999,1781362245000,-250.0,0.0002755,2]
[424971005,1781362245000,-682.11,0.0002755,30]
[424971004,1781362245000,-1144.59,0.0002755,30]
[424971007,1781362245000,-1099.39,0.0002755,30]
[424971006,1781362245000,-6344.45,0.0002755,30]
[424971010,1781362245000,-467.34,0.0002758,7]
[424970994,1781362245000,-250.0,0.0002755,2]
[424971009,1781362245000,-467.84,0.0002758,7]
[424971012,1781362245000,-467.84,0.00027611,30]
[424971014,1781362245000,-6384.30710499,0.00027634,2]
[424971013,1781362245000,-467.34,0.00027611,30]
[424971015,1781362245000,-500.0,0.0002764,120]
[424971018,1781362245000,-501.0,0.00027644,11]
[424971017,1781362245000,-467.34,0.00027641,2]
[424971016,1781362245000,-467.84,0.00027641,2]
[424971020,1781362245000,-467.34,0.00027672,7]
[424971019,1781362245000,-467.84,0.00027672,7]
[424971022,1781362245000,-467.34,0.00027702,30]
[424970958,1781362245000,-189.87345411,0.00027398,7]
[424971021,1781362245000,-467.84,0.00027702,30]
[424971011,1781362245000,-511.106,0.00027593,2]
[424970992,1781362245000,-301.0,0.00027534,2]
[424971000,1781362245000,-250.0,0.0002755,2]
[424970987,1781362245000,-265.58,0.00027414,7]
[424970962,1781362245000,-271.9571054,0.00027398,7]
[424970965,1781362245000,-150.96179047,0.00027398,7]
[424970961,1781362245000,-201.59066875,0.00027398,7]
[424970964,1781362245000,-152.33448706,0.00027398,7]
[424970959,1781362245000,-246.19608703,0.00027398,7]
[424970967,1781362245000,-180.42001201,0.00027398,7]
[424970966,1781362245000,-164.10028957,0.00027398,7]
[424970968,1781362245000,-151.01334761,0.00027398,7]
[424970970,1781362245000,-165.23320459,0.00027398,7]
[424970985,1781362245000,-155.29676333,0.00027398,7]
[424970971,1781362245000,-157.55294594,0.00027398,7]
[424970972,1781362245000,-183.85966407,0.00027398,7]
[424970977,1781362245000,-170.81954764,0.00027398,7]
[424970973,1781362245000,-191.75244825,0.00027398,7]
[424970969,1781362245000,-168.58047243,0.00027398,7]
[424970974,1781362245000,-158.77011384,0.00027398,7]
[424970983,1781362245000,-151.75019016,0.00027398,2]
[424970975,1781362245000,-176.8854402,0.00027398,7]
[424970988,1781362245000,-500.0,0.000275,7]
[424970981,1781362245000,-150.3003021,0.00027398,7]
[424970982,1781362245000,-192.59202553,0.00027398,7]
[424970986,1781362245000,-150.56296667,0.00027398,7]
[424970990,1781362245000,-150.0,0.00027504,7]
[424970980,1781362245000,-161.62540363,0.00027398,7]
[424970979,1781362245000,-150.54362776,0.00027398,7]
[424970978,1781362245000,-173.40575878,0.00027398,5]
[424970976,1781362245000,-212.22772635,0.00027398,7]
[424970984,1781362245000,-195.27709543,0.00027398,7]
[424971054,1781362246000,-1099.39,0.00027872,2]
[424971066,1781362246000,-467.84,0.00027946,7]
[424971062,1781362246000,-467.84,0.00027885,30]
[424971065,1781362246000,-310.0,0.00027918,2]
[424971061,1781362246000,-151.0,0.00027873,2]
[424971059,1781362246000,-151.0,0.00027873,2]
[424971060,1781362246000,-260.4103811,0.00027873,2]
[424971058,1781362246000,-153.05655402,0.00027873,2]
[424971057,1781362246000,-217.15233878,0.00027873,2]
[424971056,1781362246000,-284.01862642,0.00027873,2]
[424971063,1781362246000,-467.84,0.00027916,2]
[424971064,1781362246000,-1236.0,0.00027918,2]
[424971067,1781362246000,-150.0,0.00027973,2]
[424971082,1781362246000,-1099.39,0.00028033,30]
[424971070,1781362246000,-216.029201,0.00028,7]
[424971072,1781362246000,-467.84,0.00028007,2]
[424971069,1781362246000,-511.106,0.00027984,2]
[424971078,1781362246000,-682.19,0.00028033,30]
[424971077,1781362246000,-6342.07,0.00028033,30]
[424971073,1781362246000,-500.0,0.00028032,120]
[424971071,1781362246000,-160.0,0.00028,30]
[424971075,1781362246000,-2258.0,0.00028033,2]
[424971076,1781362246000,-403.0,0.00028033,2]
[424971074,1781362246000,-2237.0,0.00028033,2]
[424971080,1781362246000,-682.11,0.00028033,30]
[424971079,1781362246000,-1144.59,0.00028033,30]
[424971055,1781362246000,-260.4103811,0.00027873,2]
[424971068,1781362246000,-467.84,0.00027977,30]
[424971052,1781362246000,-682.11,0.00027872,2]
[424971024,1781362246000,-682.19,0.00027711,7]
[424971050,1781362246000,-682.19,0.00027872,2]
[424971023,1781362246000,-6342.07,0.00027711,7]
[424971027,1781362246000,-6344.45,0.00027711,7]
[424971028,1781362246000,-1099.39,0.00027711,7]
[424971025,1781362246000,-1144.59,0.00027711,7]
[424971030,1781362246000,-467.34,0.00027733,2]
[424971026,1781362246000,-682.11,0.00027711,7]
[424971029,1781362246000,-467.84,0.00027733,2]
[424971032,1781362246000,-308.24,0.00027752,7]
[424971031,1781362246000,-1260.89,0.00027752,2]
[424971033,1781362246000,-5262.185,0.00027752,17]
[424971035,1781362246000,-467.84,0.00027763,7]
[424971038,1781362246000,-467.84,0.00027794,30]
[424971051,1781362246000,-1144.59,0.00027872,2]
[424971034,1781362246000,-219.402,0.00027752,17]
[424971037,1781362246000,-511.106,0.00027789,2]
[424971040,1781362246000,-467.84,0.00027824,2]
[424971042,1781362246000,-250.0,0.0002784,2]
[424971041,1781362246000,-467.34,0.00027824,2]
[424971045,1781362246000,-250.0,0.0002784,2]
[424971043,1781362246000,-250.0,0.0002784,2]
[424971044,1781362246000,-250.0,0.0002784,2]
[424971046,1781362246000,-250.0,0.0002784,2]
[424971047,1781362246000,-467.84,0.00027855,7]
[424971049,1781362246000,-6342.07,0.00027872,2]
[424971048,1781362246000,-150.0,0.00027861,7]